[Event "Early-Titled-Tuesday-Blitz-January-23-2024"]
[Site "Chess.com"]
[Date "2024.01.23"]
[Round "9"]
[White "Binary010"]
[Black "Goryachkina"]
[Result "1-0"]
[WhiteElo "2890"]
[BlackElo "2701"]
[TimeControl "180+1"]
[EndTime "9:46:35 PST"]
[Termination "Binary010 won on time"]

1. e4 {[%clk 0:03:00.9]} 1... c5 {[%clk 0:02:59.4]} 2. Nf3 {[%clk 0:03:00.3]}
2... e6 {[%clk 0:02:59.4]} 3. d4 {[%clk 0:03:00.3]} 3... cxd4 {[%clk 0:02:59.8]}
4. Nxd4 {[%clk 0:03:01.2]} 4... Nc6 {[%clk 0:02:59.9]} 5. Nc3 {[%clk 0:03:00.9]}
5... Bc5 {[%clk 0:02:59.6]} 6. Be3 {[%clk 0:02:29.1]} 6... Qb6 {[%clk
0:02:58.6]} 7. Na4 {[%clk 0:02:28.8]} 7... Qa5+ {[%clk 0:02:58.5]} 8. c3 {[%clk
0:02:29.1]} 8... Bxd4 {[%clk 0:02:56.5]} 9. Bxd4 {[%clk 0:02:29.3]} 9... Nxd4
{[%clk 0:02:56.5]} 10. Qxd4 {[%clk 0:02:30]} 10... e5 {[%clk 0:02:56.3]} 11. Qd1
{[%clk 0:02:14.7]} 11... Nf6 {[%clk 0:02:53.8]} 12. Bd3 {[%clk 0:02:01.5]} 12...
O-O {[%clk 0:02:49.8]} 13. O-O {[%clk 0:02:00.3]} 13... b5 {[%clk 0:02:34.2]}
14. Nc5 {[%clk 0:01:58.2]} 14... d6 {[%clk 0:02:32.2]} 15. Nb3 {[%clk
0:01:53.6]} 15... Qb6 {[%clk 0:02:31.2]} 16. a4 {[%clk 0:01:30.1]} 16... bxa4
{[%clk 0:02:22.1]} 17. Rxa4 {[%clk 0:01:31]} 17... a5 {[%clk 0:02:21.5]} 18. Qc2
{[%clk 0:01:24.2]} 18... Bd7 {[%clk 0:02:17.4]} 19. Ra3 {[%clk 0:01:08.2]} 19...
Rfb8 {[%clk 0:02:10.4]} 20. Rb1 {[%clk 0:01:03.3]} 20... a4 {[%clk 0:01:50.1]}
21. Nd2 {[%clk 0:01:03]} 21... Qc5 {[%clk 0:01:47.4]} 22. Nf1 {[%clk 0:00:56.5]}
22... d5 {[%clk 0:01:30]} 23. exd5 {[%clk 0:00:55.5]} 23... Qxd5 {[%clk
0:01:30.2]} 24. Ne3 {[%clk 0:00:54.2]} 24... Qc5 {[%clk 0:01:29]} 25. Bf5 {[%clk
0:00:43.1]} 25... Bc6 {[%clk 0:01:26.5]} 26. Rd1 {[%clk 0:00:36.2]} 26... g6
{[%clk 0:01:22.4]} 27. Bd3 {[%clk 0:00:36.3]} 27... Ra7 {[%clk 0:01:17.8]} 28.
h3 {[%clk 0:00:14.7]} 28... Rab7 {[%clk 0:01:16.6]} 29. Ra2 {[%clk 0:00:15.1]}
29... Kg7 {[%clk 0:01:16]} 30. Bf1 {[%clk 0:00:11]} 30... Nd5 {[%clk 0:00:54.1]}
31. Nc4 {[%clk 0:00:10.3]} 31... Nf4 {[%clk 0:00:46.9]} 32. Ne3 {[%clk
0:00:06.7]} 32... h5 {[%clk 0:00:37.2]} 33. g3 {[%clk 0:00:06.8]} 33... Ne6
{[%clk 0:00:21.5]} 34. Bg2 {[%clk 0:00:06.8]} 34... Bxg2 {[%clk 0:00:21.3]} 35.
Kxg2 {[%clk 0:00:07.7]} 35... Qc6+ {[%clk 0:00:21.5]} 36. Nd5 {[%clk 0:00:02.4]}
36... Rb5 {[%clk 0:00:18]} 37. Qe4 {[%clk 0:00:02.4]} 37... f6 {[%clk
0:00:14.3]} 38. Nxf6 {[%clk 0:00:01.8]} 38... Qxe4+ {[%clk 0:00:05.4]} 39. Nxe4
{[%clk 0:00:02.7]} 39... Rxb2 {[%clk 0:00:05.6]} 40. Rd7+ {[%clk 0:00:03.4]}
40... Kh6 {[%clk 0:00:04.8]} 41. Rxa4 {[%clk 0:00:04.3]} 41... R8b7 {[%clk
0:00:03.1]} 42. Rxb7 {[%clk 0:00:04.5]} 42... Rxb7 {[%clk 0:00:03]} 43. Ra5
{[%clk 0:00:05.4]} 43... Rc7 {[%clk 0:00:01.9]} 44. Rxe5 {[%clk 0:00:05.7]}
44... Nd8 {[%clk 0:00:02.4]} 45. Rc5 {[%clk 0:00:04.9]} 45... Rd7 {[%clk
0:00:02.5]} 46. c4 {[%clk 0:00:04.7]} 46... Nf7 {[%clk 0:00:02.7]} 47. Rd5
{[%clk 0:00:04.9]} 47... Rc7 {[%clk 0:00:02.8]} 48. c5 {[%clk 0:00:05.4]} 48...
Kg7 {[%clk 0:00:03.2]} 49. h4 {[%clk 0:00:05.7]} 49... Rc6 {[%clk 0:00:03.1]}
50. Ng5 {[%clk 0:00:05.6]} 50... Nxg5 {[%clk 0:00:03.1]} 51. Rxg5 {[%clk
0:00:05.6]} 51... Kf6 {[%clk 0:00:03.1]} 52. Kf3 {[%clk 0:00:05.2]} 52... Rc8
{[%clk 0:00:02.2]} 53. Ke4 {[%clk 0:00:05.5]} 53... Re8+ {[%clk 0:00:02.5]} 54.
Kd4 {[%clk 0:00:06]} 54... Re2 {[%clk 0:00:02.7]} 55. f4 {[%clk 0:00:05.9]}
55... Rd2+ {[%clk 0:00:02.6]} 56. Kc4 {[%clk 0:00:05.9]} 56... Rc2+ {[%clk
0:00:03.1]} 57. Kd5 {[%clk 0:00:06.2]} 57... Rd2+ {[%clk 0:00:03.5]} 58. Kc6
{[%clk 0:00:06.3]} 58... Rd1 {[%clk 0:00:03.4]} 59. Kc7 {[%clk 0:00:06.6]} 1-0

[Event "Early-Titled-Tuesday-Blitz-January-23-2024"]
[Site "Chess.com"]
[Date "2024.01.23"]
[Round "9"]
[White "vovachesss"]
[Black "quvnoq_muxlis"]
[Result "1-0"]
[WhiteElo "2852"]
[BlackElo "2679"]
[TimeControl "180+1"]
[EndTime "9:46:38 PST"]
[Termination "vovachesss won by resignation"]

1. d4 {[%clk 0:03:00.9]} 1... Nf6 {[%clk 0:02:58.5]} 2. c4 {[%clk 0:02:58.2]}
2... e6 {[%clk 0:02:58.8]} 3. Nc3 {[%clk 0:02:58.4]} 3... Bb4 {[%clk 0:02:58.5]}
4. e3 {[%clk 0:02:58.9]} 4... O-O {[%clk 0:02:56]} 5. Bd3 {[%clk 0:02:59.2]}
5... d5 {[%clk 0:02:56.3]} 6. a3 {[%clk 0:02:59.6]} 6... Bxc3+ {[%clk
0:02:55.2]} 7. bxc3 {[%clk 0:03:00.5]} 7... c5 {[%clk 0:02:55.9]} 8. cxd5 {[%clk
0:03:00]} 8... exd5 {[%clk 0:02:55.1]} 9. Ne2 {[%clk 0:03:00]} 9... Re8 {[%clk
0:02:55.1]} 10. O-O {[%clk 0:02:58.9]} 10... Nbd7 {[%clk 0:02:47]} 11. Ng3
{[%clk 0:02:54.6]} 11... Nf8 {[%clk 0:02:46.6]} 12. a4 {[%clk 0:02:31.5]} 12...
cxd4 {[%clk 0:02:15.3]} 13. cxd4 {[%clk 0:02:28.6]} 13... g6 {[%clk 0:02:08.5]}
14. Ba3 {[%clk 0:02:25.6]} 14... h5 {[%clk 0:02:07.5]} 15. Ne2 {[%clk
0:02:21.1]} 15... Ne6 {[%clk 0:02:06.9]} 16. Qc2 {[%clk 0:02:10.8]} 16... Ng7
{[%clk 0:01:55.7]} 17. Rfc1 {[%clk 0:02:06.6]} 17... Ne6 {[%clk 0:01:31.6]} 18.
Rab1 {[%clk 0:01:20.1]} 18... b6 {[%clk 0:01:19]} 19. Qc6 {[%clk 0:01:09.6]}
19... Bd7 {[%clk 0:01:17.4]} 20. Qc2 {[%clk 0:00:57.2]} 20... Rc8 {[%clk
0:01:12.2]} 21. Qb3 {[%clk 0:00:56.5]} 21... Rxc1+ {[%clk 0:01:13.1]} 22. Rxc1
{[%clk 0:00:57.2]} 22... Qb8 {[%clk 0:01:12.9]} 23. Nc3 {[%clk 0:00:50.5]} 23...
Bc6 {[%clk 0:00:38.8]} 24. h3 {[%clk 0:00:47.6]} 24... Qb7 {[%clk 0:00:27.7]}
25. Nb5 {[%clk 0:00:40.3]} 25... Bxb5 {[%clk 0:00:25.3]} 26. Bxb5 {[%clk
0:00:39.2]} 26... Rc8 {[%clk 0:00:25.8]} 27. Rxc8+ {[%clk 0:00:32.1]} 27... Qxc8
{[%clk 0:00:26.7]} 28. Be7 {[%clk 0:00:32.5]} 28... Qc1+ {[%clk 0:00:20.4]} 29.
Kh2 {[%clk 0:00:32.9]} 29... Ne4 {[%clk 0:00:20.2]} 30. Bh4 {[%clk 0:00:12]}
30... Nc7 {[%clk 0:00:15]} 31. f3 {[%clk 0:00:10.5]} 31... Nd6 {[%clk
0:00:13.7]} 32. Bg3 {[%clk 0:00:09.8]} 32... Ncxb5 {[%clk 0:00:12.2]} 33. axb5
{[%clk 0:00:10.7]} 33... Qc4 {[%clk 0:00:12.1]} 34. Qa3 {[%clk 0:00:10.4]} 34...
Nxb5 {[%clk 0:00:11.9]} 35. Qe7 {[%clk 0:00:10.8]} 35... Qc8 {[%clk 0:00:07]}
36. Be5 {[%clk 0:00:11.1]} 36... Qf8 {[%clk 0:00:03.3]} 37. Qf6 {[%clk
0:00:11.2]} 37... Kh7 {[%clk 0:00:03.5]} 38. Qc6 {[%clk 0:00:11]} 38... Na3
{[%clk 0:00:01.9]} 39. Qxd5 {[%clk 0:00:11.1]} 39... Nc2 {[%clk 0:00:02.3]} 40.
Qc6 {[%clk 0:00:10.4]} 40... Nxe3 {[%clk 0:00:02.1]} 41. d5 {[%clk 0:00:09.8]}
41... Nf5 {[%clk 0:00:02.1]} 42. d6 {[%clk 0:00:08.5]} 42... Nxd6 {[%clk
0:00:02.4]} 43. Qxd6 {[%clk 0:00:06.8]} 43... Qxd6 {[%clk 0:00:02.6]} 44. Bxd6
{[%clk 0:00:07.7]} 44... g5 {[%clk 0:00:02.3]} 45. Kg3 {[%clk 0:00:07.1]} 45...
Kg6 {[%clk 0:00:02.6]} 46. Kf2 {[%clk 0:00:07]} 46... Kf5 {[%clk 0:00:03.1]} 47.
Ke3 {[%clk 0:00:07.5]} 47... g4 {[%clk 0:00:02.9]} 48. fxg4+ {[%clk 0:00:07.2]}
48... hxg4 {[%clk 0:00:03.8]} 49. h4 {[%clk 0:00:08.1]} 49... g3 {[%clk
0:00:02.3]} 50. Bxg3 {[%clk 0:00:07.5]} 50... Kg4 {[%clk 0:00:02.9]} 51. Be1
{[%clk 0:00:08.1]} 51... a5 {[%clk 0:00:02.8]} 52. Kd4 {[%clk 0:00:07.5]} 52...
a4 {[%clk 0:00:03]} 53. Kc4 {[%clk 0:00:07.9]} 53... f5 {[%clk 0:00:02.2]} 54.
Kb4 {[%clk 0:00:07.8]} 54... b5 {[%clk 0:00:02.9]} 55. g3 {[%clk 0:00:07.6]}
55... Kh5 {[%clk 0:00:01.8]} 56. Bc3 {[%clk 0:00:05.9]} 56... Kg4 {[%clk
0:00:01.8]} 57. Be5 {[%clk 0:00:06.6]} 57... Kh5 {[%clk 0:00:01.2]} 58. Kxb5
{[%clk 0:00:06.9]} 58... a3 {[%clk 0:00:01.9]} 59. Ka4 {[%clk 0:00:07.5]} 59...
a2 {[%clk 0:00:02.8]} 60. Ka3 {[%clk 0:00:08.1]} 60... a1=Q+ {[%clk 0:00:03.1]}
61. Bxa1 {[%clk 0:00:08.4]} 61... f4 {[%clk 0:00:04]} 62. gxf4 {[%clk
0:00:08.7]} 62... Kxh4 {[%clk 0:00:04.7]} 63. Be5 {[%clk 0:00:09.4]} 63... Kg4
{[%clk 0:00:05.2]} 64. Kb4 {[%clk 0:00:10.3]} 64... Kf5 {[%clk 0:00:06.1]} 65.
Kc5 {[%clk 0:00:11.2]} 65... Ke6 {[%clk 0:00:07]} 66. Kc6 {[%clk 0:00:11.8]} 1-0

[Event "Early-Titled-Tuesday-Blitz-January-23-2024"]
[Site "Chess.com"]
[Date "2024.01.23"]
[Round "9"]
[White "arnash_bauyrzhan"]
[Black "GrotBchess"]
[Result "1-0"]
[WhiteElo "2212"]
[BlackElo "2286"]
[TimeControl "180+1"]
[EndTime "9:46:38 PST"]
[Termination "arnash_bauyrzhan won by checkmate"]

1. e4 {[%clk 0:03:00.9]} 1... c5 {[%clk 0:02:58.8]} 2. Nf3 {[%clk 0:03:00.3]}
2... e6 {[%clk 0:02:59]} 3. d4 {[%clk 0:03:00]} 3... cxd4 {[%clk 0:02:59.6]} 4.
Nxd4 {[%clk 0:03:00.2]} 4... Nc6 {[%clk 0:03:00.2]} 5. Nc3 {[%clk 0:02:55.9]}
5... Qc7 {[%clk 0:02:59.7]} 6. g3 {[%clk 0:02:54.7]} 6... a6 {[%clk 0:02:58.3]}
7. Bg2 {[%clk 0:02:53.1]} 7... Nf6 {[%clk 0:02:58.2]} 8. O-O {[%clk 0:02:52.4]}
8... Nxd4 {[%clk 0:02:57.2]} 9. Qxd4 {[%clk 0:02:51.4]} 9... Bc5 {[%clk
0:02:57.7]} 10. Qd3 {[%clk 0:02:51.2]} 10... O-O {[%clk 0:02:48.2]} 11. Bf4
{[%clk 0:02:48.8]} 11... d6 {[%clk 0:02:48.1]} 12. Rad1 {[%clk 0:02:45.7]} 12...
e5 {[%clk 0:02:32.9]} 13. Bg5 {[%clk 0:02:44.8]} 13... Be6 {[%clk 0:02:31.3]}
14. Bxf6 {[%clk 0:02:20.8]} 14... gxf6 {[%clk 0:02:30]} 15. Kh1 {[%clk
0:02:20.4]} 15... Bd4 {[%clk 0:02:27.8]} 16. Nd5 {[%clk 0:02:11.3]} 16... Bxd5
{[%clk 0:02:18.4]} 17. exd5 {[%clk 0:02:12.2]} 17... Qd7 {[%clk 0:02:11.6]} 18.
c3 {[%clk 0:02:00.7]} 18... Bb6 {[%clk 0:02:10.9]} 19. Be4 {[%clk 0:01:59.4]}
19... h6 {[%clk 0:01:59.2]} 20. Qf3 {[%clk 0:01:56.2]} 20... f5 {[%clk
0:01:41.6]} 21. Bxf5 {[%clk 0:01:53]} 21... Qe7 {[%clk 0:01:41.2]} 22. Rde1
{[%clk 0:01:38.3]} 22... Kh8 {[%clk 0:01:29]} 23. Re4 {[%clk 0:01:37.8]} 23...
Rg8 {[%clk 0:01:15.4]} 24. Rh4 {[%clk 0:01:35]} 24... Qf6 {[%clk 0:01:12.7]} 25.
Qh5 {[%clk 0:01:26]} 25... Rg5 {[%clk 0:01:04.3]} 26. Qxh6+ {[%clk 0:01:12.7]}
26... Qxh6 {[%clk 0:01:04.1]} 27. Rxh6+ {[%clk 0:01:13.3]} 27... Kg7 {[%clk
0:01:04.4]} 28. Rh7+ {[%clk 0:01:13.4]} 28... Kg8 {[%clk 0:01:04.4]} 29. Bc2
{[%clk 0:01:03.4]} 29... Re8 {[%clk 0:00:51.9]} 30. Rh6 {[%clk 0:00:57]} 30...
Bc7 {[%clk 0:00:45.9]} 31. h4 {[%clk 0:00:45.3]} 31... Rg4 {[%clk 0:00:37.6]}
32. Bf5 {[%clk 0:00:39.5]} 32... Rg7 {[%clk 0:00:27.8]} 33. g4 {[%clk
0:00:37.7]} 33... Rd8 {[%clk 0:00:18.1]} 34. g5 {[%clk 0:00:36.5]} 34... Bb6
{[%clk 0:00:17.9]} 35. f4 {[%clk 0:00:29.2]} 35... exf4 {[%clk 0:00:17.3]} 36.
Rxf4 {[%clk 0:00:29.8]} 36... Be3 {[%clk 0:00:17.5]} 37. Re4 {[%clk 0:00:29.4]}
37... Bc1 {[%clk 0:00:17.2]} 38. b3 {[%clk 0:00:27.8]} 38... Bb2 {[%clk
0:00:17.2]} 39. Rxd6 {[%clk 0:00:24.6]} 39... Rf8 {[%clk 0:00:13.3]} 40. c4
{[%clk 0:00:21.8]} 40... f6 {[%clk 0:00:13.3]} 41. g6 {[%clk 0:00:21.1]} 41...
Be5 {[%clk 0:00:11.4]} 42. Rd7 {[%clk 0:00:18.7]} 42... Rxd7 {[%clk 0:00:09.8]}
43. Bxd7 {[%clk 0:00:19.6]} 43... Kg7 {[%clk 0:00:09.9]} 44. h5 {[%clk 0:00:19]}
44... Kh6 {[%clk 0:00:09.1]} 45. Rh4 {[%clk 0:00:16.8]} 45... Rd8 {[%clk
0:00:08.3]} 46. Be6 {[%clk 0:00:15.7]} 46... b5 {[%clk 0:00:06.6]} 47. Kg2
{[%clk 0:00:15.4]} 47... bxc4 {[%clk 0:00:06.3]} 48. bxc4 {[%clk 0:00:16.3]}
48... Bd6 {[%clk 0:00:06.6]} 49. Kf3 {[%clk 0:00:16.3]} 49... Rb8 {[%clk
0:00:06.5]} 50. Rg4 {[%clk 0:00:12.9]} 50... Kg7 {[%clk 0:00:05.5]} 51. h6+
{[%clk 0:00:12.2]} 51... Kxh6 {[%clk 0:00:05]} 52. g7 {[%clk 0:00:13]} 52... f5
{[%clk 0:00:02.8]} 53. g8=Q {[%clk 0:00:12.4]} 53... Rxg8 {[%clk 0:00:01.6]} 54.
Rxg8 {[%clk 0:00:11.9]} 54... f4 {[%clk 0:00:01.9]} 55. Kg4 {[%clk 0:00:10.8]}
55... f3 {[%clk 0:00:01.2]} 56. Kxf3 {[%clk 0:00:10.8]} 56... Bc5 {[%clk
0:00:01.9]} 57. Kg4 {[%clk 0:00:10.9]} 57... Bd6 {[%clk 0:00:02.8]} 58. Kf5
{[%clk 0:00:11.2]} 58... Kh5 {[%clk 0:00:02.7]} 59. Rh8# {[%clk 0:00:11.3]} 1-0

[Event "Early-Titled-Tuesday-Blitz-January-23-2024"]
[Site "Chess.com"]
[Date "2024.01.23"]
[Round "9"]
[White "Sebastian"]
[Black "Bigfish1995"]
[Result "0-1"]
[WhiteElo "3005"]
[BlackElo "3132"]
[TimeControl "180+1"]
[EndTime "9:46:39 PST"]
[Termination "Bigfish1995 won by resignation"]

1. e4 {[%clk 0:03:00.9]} 1... c6 {[%clk 0:02:58.9]} 2. d4 {[%clk 0:03:00.6]}
2... d5 {[%clk 0:02:59.5]} 3. e5 {[%clk 0:03:01.3]} 3... Bf5 {[%clk 0:02:59]} 4.
Nf3 {[%clk 0:03:01.6]} 4... e6 {[%clk 0:02:59.1]} 5. Be2 {[%clk 0:03:02.2]} 5...
Nd7 {[%clk 0:02:57.3]} 6. O-O {[%clk 0:03:01.9]} 6... a5 {[%clk 0:02:57]} 7. Ne1
{[%clk 0:03:02]} 7... c5 {[%clk 0:02:45.5]} 8. c3 {[%clk 0:03:01.9]} 8... Ne7
{[%clk 0:02:44]} 9. Na3 {[%clk 0:03:01.8]} 9... Nc6 {[%clk 0:02:42.4]} 10. Nb5
{[%clk 0:03:01.9]} 10... Be7 {[%clk 0:02:41.2]} 11. Bd3 {[%clk 0:02:54.5]} 11...
Bxd3 {[%clk 0:02:38.7]} 12. Nxd3 {[%clk 0:02:54.4]} 12... a4 {[%clk 0:02:25.8]}
13. Qg4 {[%clk 0:02:28.1]} 13... Kf8 {[%clk 0:02:20.9]} 14. Be3 {[%clk
0:02:11.8]} 14... cxd4 {[%clk 0:02:11.7]} 15. cxd4 {[%clk 0:02:08.2]} 15... Ra5
{[%clk 0:02:04.2]} 16. Nc3 {[%clk 0:02:04.8]} 16... h5 {[%clk 0:02:02.1]} 17.
Qd1 {[%clk 0:01:59.9]} 17... a3 {[%clk 0:01:52.9]} 18. b3 {[%clk 0:01:54.9]}
18... g6 {[%clk 0:01:52]} 19. Ne2 {[%clk 0:01:50.3]} 19... Kg7 {[%clk
0:01:49.9]} 20. Rc1 {[%clk 0:01:44.1]} 20... Qb6 {[%clk 0:01:27.5]} 21. Rc2
{[%clk 0:01:33.4]} 21... Raa8 {[%clk 0:01:26.3]} 22. h3 {[%clk 0:01:27.3]} 22...
Rac8 {[%clk 0:01:25.7]} 23. Qd2 {[%clk 0:01:26]} 23... Nb4 {[%clk 0:01:23]} 24.
Rxc8 {[%clk 0:01:17.7]} 24... Rxc8 {[%clk 0:01:23.9]} 25. Rc1 {[%clk 0:01:14.9]}
25... Rxc1+ {[%clk 0:01:22.8]} 26. Nexc1 {[%clk 0:01:14.1]} 26... Nb8 {[%clk
0:01:21.8]} 27. Nxb4 {[%clk 0:00:52.6]} 27... Bxb4 {[%clk 0:01:14.8]} 28. Qd1
{[%clk 0:00:51.5]} 28... Nc6 {[%clk 0:01:11.3]} 29. Qf3 {[%clk 0:00:33]} 29...
Be7 {[%clk 0:01:08]} 30. Nd3 {[%clk 0:00:29.1]} 30... Qb5 {[%clk 0:00:56]} 31.
Qd1 {[%clk 0:00:28.3]} 31... h4 {[%clk 0:00:51.6]} 32. Qd2 {[%clk 0:00:28]}
32... Kf8 {[%clk 0:00:49.9]} 33. Qc3 {[%clk 0:00:24.1]} 33... Ke8 {[%clk
0:00:48.9]} 34. g3 {[%clk 0:00:22.2]} 34... Kd7 {[%clk 0:00:38.7]} 35. Kg2
{[%clk 0:00:21.6]} 35... Bb4 {[%clk 0:00:21.5]} 36. Qc2 {[%clk 0:00:19.7]} 36...
Be7 {[%clk 0:00:21.4]} 37. Qc3 {[%clk 0:00:19.7]} 37... Kc7 {[%clk 0:00:20.2]}
38. Qc2 {[%clk 0:00:13.2]} 38... Kb6 {[%clk 0:00:19.8]} 39. Qd1 {[%clk
0:00:12.7]} 39... Qa5 {[%clk 0:00:18.6]} 40. Bd2 {[%clk 0:00:10.5]} 40... Qb5
{[%clk 0:00:16]} 41. Be3 {[%clk 0:00:10.6]} 41... Kc7 {[%clk 0:00:13.8]} 42. Qc2
{[%clk 0:00:09.9]} 42... Kb8 {[%clk 0:00:13.5]} 43. Qd1 {[%clk 0:00:09.8]} 43...
Bd8 {[%clk 0:00:13.9]} 44. Qc2 {[%clk 0:00:07.9]} 44... Bb6 {[%clk 0:00:13.7]}
45. Qc3 {[%clk 0:00:08.4]} 45... Ba5 {[%clk 0:00:13.9]} 46. Qc2 {[%clk
0:00:08.4]} 46... Bb6 {[%clk 0:00:13.5]} 47. Qc3 {[%clk 0:00:08.7]} 47... Ne7
{[%clk 0:00:12.5]} 48. g4 {[%clk 0:00:08.5]} 48... Nc6 {[%clk 0:00:12.5]} 49.
Kf3 {[%clk 0:00:08.6]} 49... Ba5 {[%clk 0:00:12.6]} 50. Qc2 {[%clk 0:00:08.6]}
50... Bb6 {[%clk 0:00:12.6]} 51. Qc3 {[%clk 0:00:08.7]} 51... Ba5 {[%clk
0:00:12.5]} 52. Qc2 {[%clk 0:00:08.8]} 52... Qa6 {[%clk 0:00:10.4]} 53. Kg2
{[%clk 0:00:08.5]} 53... Bb6 {[%clk 0:00:10.4]} 54. Qc3 {[%clk 0:00:08.2]} 54...
Qa7 {[%clk 0:00:11]} 55. Nc5 {[%clk 0:00:04.1]} 55... Bxc5 {[%clk 0:00:11.1]}
56. dxc5 {[%clk 0:00:04.7]} 56... Qa6 {[%clk 0:00:11.3]} 57. Qd2 {[%clk
0:00:04]} 57... Qb5 {[%clk 0:00:10.7]} 58. Qd1 {[%clk 0:00:03.3]} 58... Nb4
{[%clk 0:00:09.8]} 59. Qd2 {[%clk 0:00:03.2]} 59... Nc6 {[%clk 0:00:09.9]} 60.
f4 {[%clk 0:00:02.6]} 60... Qb4 {[%clk 0:00:09.4]} 61. Qxb4 {[%clk 0:00:02.2]}
61... Nxb4 {[%clk 0:00:09.5]} 62. Bd2 {[%clk 0:00:03.1]} 62... Nxa2 {[%clk
0:00:08.5]} 63. Kf3 {[%clk 0:00:03]} 63... d4 {[%clk 0:00:08.5]} 64. Ke4 {[%clk
0:00:02.9]} 64... Nc3+ {[%clk 0:00:09]} 65. Kxd4 {[%clk 0:00:03]} 65... Ne2+
{[%clk 0:00:09]} 66. Kd3 {[%clk 0:00:03]} 66... a2 {[%clk 0:00:08.9]} 0-1

[Event "Early-Titled-Tuesday-Blitz-January-23-2024"]
[Site "Chess.com"]
[Date "2024.01.23"]
[Round "9"]
[White "AsselLesbekova"]
[Black "N4700000"]
[Result "0-1"]
[WhiteElo "2293"]
[BlackElo "2419"]
[TimeControl "180+1"]
[EndTime "9:46:44 PST"]
[Termination "N4700000 won by resignation"]

1. e4 {[%clk 0:03:00.9]} 1... e6 {[%clk 0:02:53.6]} 2. d4 {[%clk 0:03:00.6]}
2... d5 {[%clk 0:02:52.8]} 3. Bd3 {[%clk 0:03:00.6]} 3... dxe4 {[%clk
0:02:52.2]} 4. Bxe4 {[%clk 0:03:01.5]} 4... Nf6 {[%clk 0:02:52.1]} 5. Bf3 {[%clk
0:03:02.2]} 5... c5 {[%clk 0:02:50.9]} 6. Ne2 {[%clk 0:03:02.4]} 6... Nc6 {[%clk
0:02:50.5]} 7. Be3 {[%clk 0:03:01.5]} 7... e5 {[%clk 0:02:48.7]} 8. Bxc6+ {[%clk
0:02:49.9]} 8... bxc6 {[%clk 0:02:41.3]} 9. dxe5 {[%clk 0:02:50]} 9... Qxd1+
{[%clk 0:02:35.7]} 10. Kxd1 {[%clk 0:02:50.9]} 10... Ng4 {[%clk 0:02:35.6]} 11.
Nbc3 {[%clk 0:02:42.1]} 11... Ba6 {[%clk 0:02:12.6]} 12. Re1 {[%clk 0:02:28.5]}
12... O-O-O+ {[%clk 0:02:11.5]} 13. Kc1 {[%clk 0:02:27.5]} 13... Nxe5 {[%clk
0:01:54.6]} 14. Ne4 {[%clk 0:02:26.9]} 14... Ng4 {[%clk 0:01:42.1]} 15. Bxc5
{[%clk 0:02:12.2]} 15... f5 {[%clk 0:01:40.4]} 16. Bxf8 {[%clk 0:02:08.9]} 16...
Rhxf8 {[%clk 0:01:41.3]} 17. Nc5 {[%clk 0:02:06.4]} 17... Bxe2 {[%clk 0:01:28]}
18. Rxe2 {[%clk 0:01:52.1]} 18... Rfe8 {[%clk 0:01:27.9]} 19. Rxe8 {[%clk
0:01:51.3]} 19... Rxe8 {[%clk 0:01:28.8]} 20. Kd2 {[%clk 0:01:50.5]} 20... Nxf2
{[%clk 0:01:02.8]} 21. Rf1 {[%clk 0:01:44.9]} 21... Re5 {[%clk 0:01:02.1]} 22.
Rxf2 {[%clk 0:01:40.8]} 22... Rxc5 {[%clk 0:01:01.5]} 23. Rf4 {[%clk 0:01:39.9]}
23... Kd7 {[%clk 0:00:58.7]} 24. Ra4 {[%clk 0:01:39.6]} 24... a5 {[%clk
0:00:57.7]} 25. c3 {[%clk 0:01:39.1]} 25... Kd6 {[%clk 0:00:47.3]} 26. Ke3
{[%clk 0:01:33.9]} 26... g5 {[%clk 0:00:41.7]} 27. h4 {[%clk 0:01:32.5]} 27...
h6 {[%clk 0:00:41.1]} 28. hxg5 {[%clk 0:01:30.4]} 28... hxg5 {[%clk 0:00:42]}
29. Kf3 {[%clk 0:01:21.2]} 29... Rd5 {[%clk 0:00:37.3]} 30. Ke3 {[%clk
0:01:21.2]} 30... Ke5 {[%clk 0:00:36.1]} 31. g3 {[%clk 0:01:19.7]} 31... Rb5
{[%clk 0:00:29.5]} 32. b4 {[%clk 0:01:14.7]} 32... axb4 {[%clk 0:00:26.8]} 33.
cxb4 {[%clk 0:01:15.3]} 33... c5 {[%clk 0:00:20.5]} 34. a3 {[%clk 0:01:11.6]}
34... cxb4 {[%clk 0:00:20]} 35. axb4 {[%clk 0:00:52.4]} 35... Rb8 {[%clk
0:00:19.9]} 36. Ra5+ {[%clk 0:00:51.4]} 36... Kf6 {[%clk 0:00:20.2]} 37. Ra6+
{[%clk 0:00:49.7]} 37... Kf7 {[%clk 0:00:20.4]} 38. Ra7+ {[%clk 0:00:49.5]}
38... Kg6 {[%clk 0:00:20.7]} 39. Ra4 {[%clk 0:00:40.4]} 39... Kh5 {[%clk
0:00:19.5]} 40. Kf3 {[%clk 0:00:40.9]} 40... Rc8 {[%clk 0:00:18.7]} 41. Ra3
{[%clk 0:00:39.4]} 41... Rc2 {[%clk 0:00:15.4]} 42. Rb3 {[%clk 0:00:37.8]} 42...
g4+ {[%clk 0:00:15]} 43. Kf4 {[%clk 0:00:31.4]} 43... Rf2+ {[%clk 0:00:14.9]}
44. Ke5 {[%clk 0:00:29.6]} 44... Rf3 {[%clk 0:00:14.7]} 45. Rb1 {[%clk
0:00:27.5]} 45... Kg5 {[%clk 0:00:14.5]} 46. b5 {[%clk 0:00:25.7]} 46... Rxg3
{[%clk 0:00:14.7]} 47. b6 {[%clk 0:00:26.3]} 47... Re3+ {[%clk 0:00:14.7]} 48.
Kd6 {[%clk 0:00:21.9]} 48... Re8 {[%clk 0:00:14.6]} 49. Kd7 {[%clk 0:00:22.4]}
49... Rh8 {[%clk 0:00:13.9]} 50. b7 {[%clk 0:00:20.1]} 50... g3 {[%clk
0:00:13.8]} 51. Kc7 {[%clk 0:00:18.4]} 51... f4 {[%clk 0:00:13.3]} 52. Rd1
{[%clk 0:00:18.5]} 52... g2 {[%clk 0:00:09.8]} 53. Rd8 {[%clk 0:00:16.7]} 53...
Rxd8 {[%clk 0:00:10.1]} 54. Kxd8 {[%clk 0:00:16.7]} 54... g1=Q {[%clk
0:00:10.5]} 55. b8=Q {[%clk 0:00:17.3]} 55... Qd4+ {[%clk 0:00:10.6]} 56. Ke7
{[%clk 0:00:14.1]} 56... Qe4+ {[%clk 0:00:10.1]} 57. Kd7 {[%clk 0:00:13.4]}
57... f3 {[%clk 0:00:10.1]} 58. Qg8+ {[%clk 0:00:10]} 58... Kf4 {[%clk
0:00:10.1]} 59. Qb8+ {[%clk 0:00:07.9]} 59... Ke3 {[%clk 0:00:08.5]} 60. Qb2
{[%clk 0:00:03.8]} 60... Qd4+ {[%clk 0:00:07.7]} 0-1